Cogmind - Beta 13 @@@ ROGUE MODE // 2024.06.02 @ 16:02:30 Player: netthier Result: Self-destructed Performance ------------- Evolutions (1) 500 Regions Visited (2) 400 Robots Destroyed (20) 100 Value Destroyed (525) 525 Prototype IDs (2) 40 Alien Tech Used (0) 0 Bonus (0) 0 TOTAL SCORE: 1565 Bonus ------- None Cogmind --------- Core Integrity 294/400 Matter 289/300 Energy 98/100 System Corruption 0% Temperature Cool (1) Movement Treading (160) Location -9/Materials Parts ------- > --- POWER (1) -------- (None) > --- PROPULSION (4) --- Light Treads Armored Wheel > --- UTILITY (2) ------ Small Storage Unit Targeting Computer > --- WEAPON (2) ------- Light Assault Rifle Light Assault Rifle > --- INVENTORY (8) ---- Ion Engine Large Storage Unit High-capacity Storage Unit Huge Storage Unit Seismic Detector Medium Laser Light Cannon Grenade Launcher Peak State ------------ > --- POWER ------------ Ion Engine > --- PROPULSION ------- Aluminum Leg Aluminum Leg > --- UTILITY ---------- Small Storage Unit Targeting Computer > --- WEAPON ----------- Medium Laser Small Laser > --- INVENTORY -------- Light Ion Engine EM Pulse Gun [Rating: 7] Favorites ----------- Power Ion Engine Engine Ion Engine Propulsion Aluminum Leg Treads Light Treads Leg Aluminum Leg Wheel Armored Wheel Utility Small Storage Unit Storage Small Storage Unit Processor Targeting Computer Weapon Light Assault Rifle Energy Gun Medium Laser Ballistic Gun Light Assault Rifle Build | -11 -10 -9 ------- Run | Yrd Mat Mat Slots Evolved 2 | . . 2 Power . | . . . Propulsion 2 | . . 2 Utility . | . . . Weapon . | . . . Parts Attached 19 | 7 10 2 Power 4 | 1 3 . Engine 4 | 1 3 . Core . | . . . Reactor . | . . . Propulsion 5 | 2 1 2 Treads 1 | . . 1 Leg 3 | 2 1 . Wheel 1 | . . 1 Hover . | . . . Flight . | . . . Utility 4 | 1 3 . Device . | . . . Storage 3 | 1 2 . Processor 1 | . 1 . Hackware . | . . . Protection . | . . . Artifact . | . . . Weapon 6 | 3 3 . Energy Gun 3 | 3 . . Energy Cannon . | . . . Ballistic Gun 3 | . 3 . Ballistic Cannon . | . . . Launcher . | . . . Special Weapon . | . . . Impact Weapon . | . . . Slashing Weapon . | . . . Piercing Weapon . | . . . Special Melee Weapon . | . . . Unidentified Prototypes . | . . . Parts Lost 7 | . 6 1 Power 3 | . 2 1 Propulsion 3 | . 3 . Utility . | . . . Weapon 1 | . 1 . Highest Loss Streak 5 | . 5 1 To Critical Strikes . | . . . Average Slot Usage (%) 82 | . 86 62 Engine 11 | . 12 7 Leg 13 | . 16 . Wheel 1 | . . 9 Storage 13 | . 14 11 Processor 13 | . 13 11 Energy Gun 13 | . 16 . Ballistic Gun 13 | . 11 22 Naked Turns . | . . . Heaviest Build 17 | 13 17 12 Greatest Support 20 | 20 20 20 Greatest Overweight (x) 5 | 3 5 3 Average Overweight (x) . | 1 . . Largest Inventory Capacity 10 | 8 10 8 Average Capacity 7 | 7 8 8 Most Carried 8 | 6 8 8 Average Carried 5 | 4 4 7 Final Capacity 8 | 8 8 8 Final Carried 8 | 2 7 8 Class Distribution -------------------- 100% | Mutant Dominant Class ---------------- Mutant | -10/Materials Mutant | -9/Materials Resources | -11 -10 -9 ----------- Run | Yrd Mat Mat Matter Collected 448 | 201 161 86 Remotely . | . . . Salvage Created 763 | . 485 278 Parts 29 | . 19 10 Haulers Intercepted . | . . . Recyclers Shooed 2 | . 1 1 Parts Field Recycled . | . . . Retrieved Matter . | . . . Parts Self-Destructed . | . . . Prevented . | . . . Kills | -11 -10 -9 ------- Run | Yrd Mat Mat Combat Hostiles Destroyed 16 | . 10 6 Guns 15 | . 9 6 Classes Destroyed 5 | . 4 1 Recycler 2 | . 2 . Watcher 2 | . 2 . Swarmer 5 | . 5 . Grunt 10 | . 5 5 Sentry 1 | . . 1 Best Kill Streak 7 | . 7 3 Combat Bots Only 4 | . 4 3 Max Kills in Single Turn 1 | . 1 1 Gunslinging . | . . . Exploded . | . . . Melee . | . . . Uniques/NPCs Destroyed . | . . . Combat | -11 -10 -9 -------- Run | Yrd Mat Mat Hostile Shots Fired 130 | . 101 29 Missed 30 | . 25 5 Damage Taken 1102 | . 815 287 Core 296 | . 190 106 Absorbed by Shields . | . . . Core Remaining (%) 62 | 100 24 . Volleys Fired 77 | . 53 24 Largest 2 | . 2 2 Hottest 90 | . 90 40 Shots Fired 147 | . 99 48 Gun 147 | . 99 48 Cannon . | . . . Launcher . | . . . Special . | . . . Kinetic 95 | . 47 48 Thermal 52 | . 52 . Explosive . | . . . Electromagnetic . | . . . Robot Hit Streak 21 | . 9 21 Robot Miss Streak 6 | . 6 2 Penetration Max . | . . . Secondary Targets 1 | . 1 . Max Gunslinging Chain 1 | . 1 . Shots Hit Robots 103 | . 63 40 Core Hits 41 | . 22 19 Critical Kills . | . . . Critical Parts Destroyed 2 | . 1 1 Critical Strikes 6 | . 5 1 Burn 4 | . 4 . Destroy 2 | . 1 1 Melee Attacks . | . . . Impact . | . . . Slashing . | . . . Piercing . | . . . Sneak Attacks . | . . . Combat Hostiles . | . . . Follow-up Attacks . | . . . Damage Inflicted 1049 | . 696 353 Guns 1003 | . 656 347 Cannons . | . . . Explosions 40 | . 40 . Melee . | . . . Ramming 6 | . . 6 Kinetic 598 | . 251 347 Thermal 405 | . 405 . Explosive . | . . . Electromagnetic 40 | . 40 . Impact . | . . . Slashing . | . . . Piercing . | . . . Highest Corruption . | . . . Average Corruption . | . . . Corruption Purged . | . . . Corruption Blocked . | . . . Overload Shots . | . . . Overflow Damage 1 | . 1 . Projectiles . | . . . Explosions 1 | . 1 . Melee . | . . . Knockbacks . | . . . Impact . | . . . Kinetic . | . . . Secondary . | . . . Self-Inflicted Damage 105 | . 103 2 Shots 4 | . 4 . Rammed 2 | . . 2 Targets Rammed 2 | . . 2 Kicked . | . . . Crushed . | . . . Highest Temperature 275 | . 275 9 Average Temperature 91 | . 99 3 Received Heat Transfer 417 | . 255 162 Effects 2 | . 2 . Interference 2 | . 2 . Siege Activations . | . . . Robots Corrupted . | . . . Combat Hostiles . | . . . Parts Fried . | . . . Impact Corruptions . | . . . Robots Melted 1 | . 1 . Combat Hostiles 1 | . 1 . Parts Melted 1 | . 1 . Heat Transferred 1349 | . 1349 . Parts Sabotaged . | . . . Parts Stolen . | . . . Parts Stripped . | . . . Power Chain Reactions 2 | . 2 . Alert | -11 -10 -9 ------- Run | Yrd Mat Mat Peak Influence 273 | . 273 221 Initial 51 | . . 51 Average 94 | . 96 125 Maximum Alert Level 1 | . 1 1 Low Security (%) 80 | 100 77 88 Level 1 19 | . 22 11 Level 2 . | . . . Level 3 . | . . . Level 4 . | . . . Level 5 . | . . . High Security . | . . . Max Security . | . . . Squads Dispatched 5 | . 3 2 Investigation 1 | . 1 . Extermination . | . . . Reinforcement 4 | . 2 2 Assault . | . . . Garrison . | . . . Intercept . | . . . Searches Triggered . | . . . Construction Impeded . | . . . Haulers Reinforced . | . . . Active Scanning Responses . | . . . Cargo Convoy Interrupts . | . . . Stealth | -11 -10 -9 --------- Run | Yrd Mat Mat Distress Signals . | . . . Communications Jammed . | . . . Distress Signals . | . . . Times Spotted 35 | . 23 12 Peak Tracking Total 5 | . 5 3 Tactical Retreats 2 | . 2 . Traps | -11 -10 -9 ------- Run | Yrd Mat Mat Traps Triggered 1 | . 1 . Indirectly . | . . . Trap Hack Attempts . | . . . Triggered . | . . . Disarmed . | . . . Reprogrammed . | . . . Reused . | . . . Traps Extracted . | . . . Installed . | . . . Triggered . | . . . Machines | -11 -10 -9 ---------- Run | Yrd Mat Mat Machines Disabled 2 | . 2 . Max in Single Turn 2 | . 2 . Machines Repaired . | . . . Machines Dismantled . | . . . Machines Sabotaged . | . . . Overloaded Fab Kills . | . . . Hacking | -11 -10 -9 --------- Run | Yrd Mat Mat Machines Accessed 7 | . 7 . Terminals 7 | . 7 . Fabricators . | . . . Repair Stations . | . . . Recycling Units . | . . . Scanalyzers . | . . . Garrison Access . | . . . Total Hacks 15 | . 15 . Successful 10 | . 10 . Failed 5 | . 5 . Catastrophic . | . . . Database Lockouts . | . . . Manual . | . . . Terminals 15 | . 15 . Fabricators . | . . . Repair Stations . | . . . Recycling Units . | . . . Scanalyzers . | . . . Garrison Access . | . . . Terminal Hacks 10 | . 10 . Robot Analysis 2 | . 2 . Prototype ID Bank 1 | . 1 . Emergency Access Points 2 | . 2 . Alert Level 1 | . 1 . Locate Traps 1 | . 1 . Dispatch Records 1 | . 1 . Hauler Manifests 1 | . 1 . Zone Layout 1 | . 1 . Fabricator Hacks . | . . . Repair Station Hacks . | . . . Recycling Unit Hacks . | . . . Scanalyzer . | . . . Garrison Access Hacks . | . . . Unauthorized Hacks . | . . . Terminals . | . . . Fabricators . | . . . Repair Stations . | . . . Recycling Units . | . . . Scanalyzers . | . . . Garrison Access . | . . . Data Cores Recovered . | . . . Used . | . . . Hacking Detections 3 | . 3 . Full Trace Events . | . . . Feedback Events . | . . . Feedback Blocked . | . . . Robot Schematics Acquired . | . . . Robots Built . | . . . Authchips . | . . . Time . | . . . Total Robot Build Rating . | . . . Part Schematics Acquired . | . . . Parts Built . | . . . Authchips . | . . . Time . | . . . Total Part Build Rating . | . . . Parts Repaired . | . . . Time . | . . . Parts Recycled . | . . . Recycled Matter . | . . . Retrieved Matter . | . . . Retrieved Components . | . . . Parts Scanalyzed . | . . . Part Schematics Acquired . | . . . Parts Damaged . | . . . Bothacking | -11 -10 -9 ------------ Run | Yrd Mat Mat Used RIF Installer . | . . . Robots Hacked . | . . . Non-combat . | . . . Combat . | . . . Robot Hacks Applied . | . . . Relay Couplers Released . | . . . Fabnet Peak Effective % . | . . . Robots Rewired . | . . . Allies Hacked . | . . . Hacks Repelled . | . . . Allies | -11 -10 -9 -------- Run | Yrd Mat Mat Total Allies . | . . . Largest Group . | . . . Highest-Rated Group . | . . . Highest-Rated Ally . | . . . Total Orders . | . . . Ally Attacks . | . . . Total Damage . | . . . Kills . | . . . Allies Corrupted . | . . . Allies Melted . | . . . Intel | -11 -10 -9 ------- Run | Yrd Mat Mat Robot Analysis Total 2 | . 2 . Derelict Logs Recovered . | . . . Drone Launches . | . . . Drone Recoveries . | . . . Exploration | -11 -10 -9 ------------- Run | Yrd Mat Mat Turns Passed 1229 | 80 955 194 Spaces Moved 668 | 54 517 97 Core 223 | 48 160 15 Treads 7 | . . 7 Legs 363 | 6 357 . Wheels 75 | . . 75 Hover . | . . . Flight . | . . . Fastest Speed 50 | 50 120 90 Average Speed 137 | 122 143 112 Slowest Speed 300 | 200 300 200 Overloaded Moves . | . . . Propulsion Burnouts . | . . . Robots Hopped . | . . . Cave-ins Triggered . | . . . Exploration Rate (%) 28 | 3 68 14 Regions Visited 2 Branch Regions . Pre-discovered Areas . | . . . Known Exits Taken . | . . . Unknown Exits Taken 2 | 1 1 . Scrap Searched . | . . . Spaces Dug . | . . . Terrain Destroyed 3 | . 3 . Melee . | . . . Projectile . | . . . AOE 3 | . 3 . Terrain Rammed . | . . . Walls Destroyed . | . . . Machines Disabled . | . . . Actions | -11 -10 -9 --------- Run | Yrd Mat Mat Total 848 | 67 638 143 Wait 58 | . 43 15 Move 665 | 53 516 96 Hop . | . . . Pick Up 22 | 6 13 3 Fast Attach 3 | 2 . 1 Attach 11 | 5 5 1 Detach 1 | 1 . . Swap 5 | . 5 . Drop 4 | . 3 1 Fire 77 | . 53 24 Melee . | . . . Ram 1 | . . 1 Kick . | . . . Crush 1 | . . 1 Escape Stasis . | . . . Rewire . | . . . Trap . | . . . Miscellaneous . | . . . Route ------- -11/Scrapyard -10/Materials (discovered 3 exits: [*Mat x2] / [*Min]) -9/Materials (discovered 1 exit: [*Mat]) History --------- Turn | Location | Event 10 | -11/Scrapyard | Discovered new exit (range 15) 81 | -11/Scrapyard | Entered Materials 167 | -10/Materials | Discovered new exit (range 12) 301 | -10/Materials | Build established: Mutant 671 | -10/Materials | Core integrity fell below 50% 689 | -10/Materials | Lost 5 parts (2p3n) 795 | -10/Materials | Discovered new exit (range 16) 952 | -10/Materials | Discovered new exit (range 5) 1036 | -10/Materials | Entered another Materials area 1036 | -9/Materials | Evolved 2 slots: Propulsion x2 1222 | -9/Materials | Discovered new exit (range 5) 1230 | -9/Materials | Self-destructed Last Messages --------------- G-34 Mercenary suffers critical hit (Destroy). Destroyed Aluminum Leg. K-01 Serf collects debris. G-34 Mercenary destroyed. K-01 Serf collects debris. Acquired 11 matter. R-06 Scavenger collects Heat Sink. Y-45 Defender destroyed. O-16 Technician uses terminal to summon reinforcements. ALERT: Hostiles spotted, dispatching reinforcements to Terminal M003. O-16 Technician locks terminal. Acquired 4 matter. Acquired Lgt. Treads. R-06 Scavenger collects Lgt. Treads. M-13 Machinist repairs R-06 Scavenger. R-06 Scavenger collects Heat Sink. EXIT=FOUND Slammed into G-34 Mercenary. Map ----- +----------------------------------------------------+ | ????????????# ???????????????????? | | ????????????# #?????????????###### | | ????????????# #####?????????# | | ??????#####?# ??????????# [ | | ??????# ""#?# #??????????# | | ??????#""S#?# #??????????# [ !! | | ?????##"" ### #??????????# ]!! | | ?????# # #??????????# !! | | ?????# """ # #??????????# | | ?????# """ + ################# | | ?????# """ # % ## """ """ # | | ?????# # ## """"""""" # | | ?????# ! # + """"" + | | ?????######## ##### # | | ????#########/#???# # | | ???## = """ #???# # | | ???# "T"%#???#########+##### | | ????# [ %#?????????????????# | | ????# """ """ #?????????????????# | | ????# """ """ #?????????????????# | | ????# """ """ #?????????????????# | | ????# #?????????????????# | | ????# #?????????????????? | | ????#######/######+###??????????? | | ???????# g g ??????? | | ???????# @ ??????? | | ???????# ??????? | | ???????###########+######????????? | | ?????????????????????????????????? | | ?????????????????????????????????? | | ?????????????????????????????????? | | ?????????????????????????????????? | | ?????????????????????????????????? | | ?????????????????????????????????? | | ?????????????????????????????????? | | ?????????????????????????????????? | | ?????????????????????????????????? | | ?????????????????????????????????? | | ?????????????????????????????????? | | ?????????????????????????????????? | | ?????????????????????????????????? | | ?????????????????????????????????? | | ?????????????????????????????????? | | ?????????????????????????????????? | | ?????????????????????????????????? | | ?????????????????????????????????? | | ?????????????????????????????????? | | ?????????????????????????????????? | | ?????????????????????????????????? | | ?????????????????????????????????? | +----------------------------------------------------+ Best States ------------- Heat Dissipation 28 Energy Generation 10 Energy Capacity 250 Matter Stores 300 Matter Capacity 300 Sight Range 16 Terrain Scan Density 10 Evasion (%) 55 Targeting Accuracy 5 Recoil Reduction 1 Item Schematics ----------------- None Robot Schematics ------------------ None Fabricated ------------ Nothing Alien Tech Used ----------------- None Achievements -------------- Shopping List Challenges ------------ None Game ------ Seed OmegaAssaultSystem Manual? 0 Play Time 00:13:50 Cumulative 3.1 hours Start 2024.06.02 @ 15:47:10 End 2024.06.02 @ 16:02:30 Sessions 1 Manual Loads 0 Difficulty Rogue Special Mode None Game No. 10 Rogue 10 Adventurer 0 Explorer 0 Win Type - Total 0 Types 0/0/0/0/0/0/0/0/0 Lore% 3 Gallery% 6 Achievement% 6 Wizard Run 0 Options --------- Layout 1 ASCII 0 Keyboard 0 Movement Mouse Keybinds 0 Fullscreen 2 Font 32/SmallcapsGlow Map View 50x35 Zoom Use 2% Tactical HUD 0 Map Filters NONE Filters NONE Steam 1 RUN: db9c0fe7-f016-4eae-a640-e1dbdc330430